bitfinex/quotes_ETHUSD_20251111
["timestamp","ask_amount","ask_price","bid_price","bid_amount"]
[1762895697885,2.08610381,3448.0,3447.9,0.001]
[1762895698076,1.52711014,3448.0,3447.9,0.001]
[1762895698685,1.55615894,3448.0,3447.9,0.001]
[1762895698891,4.95639095,3448.0,3447.9,0.001]
[1762895699185,4.95639095,3448.0,3447.4,0.001]
[1762895699186,5.03439344,3447.5,3447.4,0.001]
[1762895699388,2.62985094,3447.5,3447.4,0.001]
[1762895699588,2.45589603,3447.5,3447.4,0.001]
[1762895699755,3.42409603,3447.5,3447.4,0.001]
[1762895699966,3.42409603,3447.5,3446.6,0.4585]
[1762895699967,0.0068,3447.4,3446.6,0.4585]
[1762895700174,0.5,3446.8,3446.6,0.4585]
[1762895700373,0.53921014,3446.7,3446.6,0.4585]
[1762895700698,1.03921014,3446.7,3446.6,1.1595]
[1762895700876,1.03921014,3446.7,3446.6,1.6242]
[1762895701299,1.03921014,3446.7,3446.6,0.701]
[1762895701300,1.50741014,3446.7,3446.6,0.701]
[1762895701510,3.74389195,3446.7,3446.6,0.701]
[1762895701712,2.82369195,3446.7,3446.6,0.701]
[1762895701984,0.53921014,3446.7,3446.6,1.6242]
[1762895703223,0.53921014,3446.7,3446.6,1.6252]
[1762895703430,0.002,3448.1,3446.9,0.405504]
[1762895703574,0.5,3447.8,3447.4,0.4647]
[1762895703773,0.002,3448.1,3447.7,0.4647]
[1762895703975,0.002,3448.1,3448.0,0.4647]
[1762895704214,0.502,3448.1,3448.0,0.4647]
[1762895704712,0.5,3447.8,3447.2,0.1806]
[1762895704884,3.40057724,3447.6,3447.3,0.701]
[1762895705083,0.5,3447.4,3447.3,0.701]
[1762895706308,2.90091408,3447.2,3446.6,0.001]
[1762895706612,0.1996,3447.9,3446.6,0.001]
[1762895706613,0.5,3447.1,3446.7,0.701]
[1762895706799,0.5,3447.5,3446.7,0.701]
[1762895707015,0.5,3447.2,3447.0,0.4647]
[1762895707403,0.5,3447.0,3446.7,0.701]
[1762895707615,1.1337408,3447.5,3446.7,0.701]
[1762895707825,0.5,3447.0,3446.7,0.701]
[1762895708026,0.5,3447.1,3446.6,0.001]
[1762895708208,2.90095792,3447.2,3446.6,0.001]
[1762895708209,0.5,3446.7,3446.6,0.001]
[1762895708409,0.5,3446.7,3446.6,0.701]
[1762895708616,0.5,3446.7,3446.6,1.1657]
[1762895709695,1.1337408,3447.2,3446.6,1.1657]
[1762895709934,0.5,3446.7,3446.6,0.4657]
[1762895710617,0.5,3446.7,3446.6,1.1657]
[1762895710929,0.5,3446.9,3446.6,1.6242]
[1762895711321,1.1337408,3447.2,3446.6,0.701]
[1762895711515,0.5,3446.7,3446.6,0.701]
[1762895712098,0.5,3447.0,3446.6,1.6242]
[1762895712428,0.5,3446.7,3446.6,0.9242]
[1762895712620,1.1337408,3447.1,3446.6,1.6242]
[1762895712933,0.44863981,3447.2,3446.6,1.6242]
[1762895713110,0.5,3446.8,3446.6,1.6242]
[1762895713430,2.90082351,3447.3,3446.6,1.6242]
[1762895713617,0.5,3446.8,3446.6,0.4595]
[1762895713821,0.5,3446.8,3446.7,0.7]
[1762895714024,0.5,3446.8,3446.7,1.1647]
[1762895714237,0.4682,3446.8,3446.7,0.7]
[1762895714411,0.5,3446.9,3446.7,1.1647]
[1762895714820,0.5,3446.9,3446.8,0.4647]
[1762895715138,0.5,3446.9,3446.8,1.1647]
[1762895715431,0.5420886,3446.9,3446.8,1.6232]
[1762895715639,0.5420886,3446.9,3446.8,2.19402541]
[1762895715837,0.5420886,3446.9,3446.8,5.12427955]
[1762895716026,0.5420886,3446.9,3446.8,19.59526714]
[1762895716600,0.5420886,3446.9,3446.8,16.69402541]
[1762895717660,6.693e-05,3446.9,3446.8,27.54424451]
[1762895717805,0.002,3448.1,3447.1,0.405504]
[1762895718004,0.002,3448.1,3448.0,0.5719]
[1762895718337,0.002,3448.1,3448.0,1.2719]
[1762895718512,0.002,3448.1,3448.0,1.7304]
[1762895719405,0.002,3448.1,3448.0,5.03613601]
[1762895719609,0.002,3448.1,3448.0,12.55576596]
[1762895719837,0.002,3448.1,3448.0,27.05576596]
[1762895720386,0.002,3448.1,3448.0,20.3297822]
[1762895720591,0.002,3448.1,3448.0,16.56554619]
[1762895720731,0.002,3448.1,3448.0,1.1647]
[1762895721040,0.002,3448.1,3448.0,0.4647]
[1762895721251,0.9702,3448.1,3448.0,0.7]
[1762895722671,0.502,3448.1,3448.0,0.7]
[1762895723368,0.002,3448.1,3448.0,0.7]
[1762895724132,0.002,3448.1,3448.0,1.1647]
[1762895724568,0.002,3448.1,3448.0,0.7]
[1762895724941,0.502,3448.1,3448.0,0.7]
[1762895725285,0.002,3448.1,3448.0,0.6561136]
[1762895725648,0.002,3448.1,3448.0,0.4647]
[1762895725848,0.002,3448.1,3448.0,1.1647]
[1762895727138,0.502,3448.1,3448.0,0.7]
[1762895727745,0.002,3448.1,3448.0,1.1969]
[1762895728378,0.002,3448.1,3448.0,1.81489]
[1762895728675,0.002,3448.1,3448.0,5.12062601]
[1762895729959,0.002,3448.1,3448.0,16.720394]
[1762895730640,0.002,3448.5,3448.4,3.3053996]
[1762895730842,0.002,3448.8,3448.7,2.89964334]
[1762895731043,0.002,3449.4,3449.3,3.30464295]
[1762895731269,0.002,3449.4,3449.3,4.69314295]
[1762895731478,0.002,3449.4,3449.3,2.247004]
[1762895731984,0.002,3449.4,3449.3,1.3885]
[1762895732645,0.002,3449.4,3449.3,0.6895]
[1762895732844,0.002,3449.4,3449.3,1.1959]
[1762895733044,1.04238352,3449.4,3449.3,0.699]
[1762895733807,0.54238352,3449.4,3449.3,0.699]
[1762895735292,1.04238352,3449.4,3449.3,0.699]
[1762895735801,0.54238352,3449.4,3449.3,0.699]
[1762895736350,1.48838352,3449.4,3449.3,0.699]
[1762895737186,0.54238352,3449.4,3449.3,0.699]
[1762895737703,1.04238352,3449.4,3449.3,0.699]
[1762895738198,1.48838352,3449.4,3449.3,0.699]
[1762895738397,2.09152187,3449.4,3449.3,0.699]
[1762895738599,2.09152187,3449.4,3448.1,2.9001305]
[1762895738600,0.5,3449.0,3448.1,0.1997]
[1762895738811,0.54038352,3448.9,3448.1,0.6527]
[1762895738990,1.6168896,3449.3,3448.1,0.6527]
[1762895738991,0.5,3448.7,3448.2,0.699]
[1762895739188,0.56943232,3448.8,3448.3,0.699]
[1762895739189,0.5397024,3448.6,3448.3,0.699]
[1762895739361,0.26985544,3448.5,3448.3,0.699]
[1762895739565,1.0397374,3448.4,3448.3,0.699]
[1762895740206,0.5397374,3448.4,3448.3,0.699]
[1762895740506,1.4398374,3448.4,3448.3,0.699]
[1762895740676,1.4857374,3448.4,3448.3,0.699]
[1762895741413,0.54020578,3448.4,3448.3,0.699]
[1762895741583,0.54020578,3448.4,3448.3,1.1959]
[1762895742374,0.54020578,3448.4,3448.3,0.699]
[1762895743805,0.98620578,3448.4,3447.4,14.6806]
[1762895744005,1.04020578,3448.3,3447.5,3.33220878]
[1762895744308,0.54020578,3448.2,3447.5,3.33220878]
[1762895744509,0.54020578,3448.1,3447.5,5.77985587]
[1762895744809,0.54020578,3448.0,3447.6,0.453]
[1762895745008,0.54020578,3447.9,3447.6,2.49904559]
[1762895745241,0.27073559,3447.8,3447.7,3.30598838]
[1762895745537,0.5,3448.6,3447.8,2.90039458]
[1762895745747,0.54148276,3448.5,3447.9,1.151]
[1762895745946,0.54148276,3448.5,3447.9,0.698]
[1762895745947,0.54148276,3448.4,3447.9,0.698]
[1762895746104,0.54148276,3448.3,3447.9,0.698]
[1762895746307,0.54148276,3448.2,3447.9,0.698]
[1762895746505,0.54148276,3448.1,3447.9,0.698]
[1762895746732,0.54148276,3448.0,3447.9,1.14369715]
[1762895746929,0.54148276,3448.0,3447.9,0.698]
[1762895747241,0.54148276,3448.0,3447.9,1.6479]
[1762895747442,0.54148276,3448.0,3447.9,0.4969]
[1762895747742,0.54148276,3448.0,3447.7,0.698]
[1762895747743,1.04148276,3448.0,3447.7,0.698]
[1762895747951,0.54148276,3447.9,3447.8,0.698]
[1762895748529,0.54148276,3447.9,3447.8,1.1949]
[1762895749144,1.02118276,3447.9,3447.1,0.453]
[1762895749351,0.57053156,3447.8,3447.2,0.698]
[1762895749644,1.04148276,3447.7,3447.2,0.698]
[1762895749849,0.54148276,3447.6,3447.2,2.40483536]
[1762895750052,0.54148276,3447.5,3447.2,1.70683536]
[1762895750261,0.54148276,3447.4,3447.3,0.698]
[1762895750661,0.54148276,3447.4,3447.3,1.1949]
[1762895751168,0.54148276,3447.4,3447.3,5.24439847]
[1762895751929,0.27074138,3447.4,3447.3,5.24439847]
[1762895752127,0.27081144,3448.3,3447.6,0.405504]
[1762895752338,0.4541,3448.6,3447.6,0.405504]
[1762895752339,0.5416136,3448.2,3447.7,0.698]
[1762895752616,0.5416136,3448.1,3447.7,1.151]
[1762895752822,0.5416136,3448.0,3447.8,0.40040167]
[1762895753168,0.5416136,3447.9,3447.8,0.40040167]
[1762895753350,0.5416136,3447.9,3447.7,0.698]
[1762895753662,0.5,3448.5,3447.8,0.9499]
[1762895753951,0.5416057,3448.4,3447.8,0.9499]
[1762895754143,0.5416057,3448.3,3447.8,0.9499]
[1762895754328,0.5416057,3448.2,3447.8,0.9499]
[1762895754516,0.5416057,3448.1,3447.8,1.44529648]
[1762895754714,0.5416057,3448.0,3447.8,1.44529648]
[1762895754910,1.5878408,3448.8,3447.8,1.44529648]
[1762895754911,0.5416057,3447.9,3447.8,1.44529648]
[1762895756017,0.5416057,3447.9,3447.8,0.4969]
[1762895757120,0.5416057,3447.9,3447.8,0.698]
[1762895757552,0.9622057,3447.9,3447.8,0.698]
[1762895757756,0.9622057,3447.9,3447.6,0.001]
[1762895757957,0.5416057,3447.8,3447.6,0.001]
[1762895758159,0.5464057,3447.7,3447.6,0.001]
[1762895758325,0.5464057,3447.7,3447.6,0.699]
[1762895758728,1.0464057,3447.7,3447.6,0.699]
[1762895759362,1.0407057,3447.7,3447.6,0.699]
[1762895759567,2.0072295,3447.7,3447.6,0.699]
[1762895759729,1.54067176,3447.7,3447.6,0.699]
[1762895759929,1.54067176,3447.7,3447.6,0.001]
[1762895760139,1.54067176,3447.7,3447.6,0.699]
[1762895760340,3.17441256,3447.7,3447.6,0.001]
[1762895760581,2.64376466,3447.7,3447.6,0.699]
[1762895760873,2.18011256,3447.7,3447.6,0.699]
[1762895761083,0.54637176,3447.7,3447.6,0.699]
[1762895761278,0.54157176,3447.7,3447.6,0.699]
[1762895761679,0.54157176,3447.7,3447.6,1.6446]
[1762895762145,0.54157176,3447.7,3447.6,1.1591]
[1762895762943,0.54157176,3447.7,3447.6,0.001]
[1762895762944,0.95187176,3447.7,3447.6,0.001]
[1762895763143,0.54157176,3447.7,3447.6,0.699]
[1762895763654,0.54157176,3447.7,3447.6,0.001]
[1762895763853,0.95187176,3447.7,3447.6,0.699]
[1762895764058,0.54157176,3447.7,3447.6,0.699]
[1762895764542,0.95187176,3447.7,3447.6,0.699]
[1762895764741,1.44537176,3447.7,3447.6,0.698]
[1762895764954,3.33702382,3447.7,3447.6,0.001]
[1762895765150,3.33702382,3447.7,3447.6,0.698]
[1762895765151,2.20328302,3447.7,3447.6,0.698]
[1762895765351,6.2375082,3447.7,3447.6,0.001]
[1762895765556,6.2375082,3447.7,3447.6,0.698]
[1762895765752,3.83702382,3447.7,3447.6,0.698]
[1762895765977,3.83702382,3447.7,3447.6,0.50915831]
[1762895765978,6.2375082,3447.7,3447.6,0.50915831]
[1762895766183,6.7375082,3447.7,3447.6,0.50915831]
[1762895766568,6.7375082,3447.7,3447.3,0.001]
[1762895766569,1.1337408,3447.6,3447.3,0.001]
[1762895766882,5.44477758,3447.4,3447.3,0.698]
[1762895767182,3.07911256,3447.4,3447.3,0.001]
[1762895767383,3.46175321,3447.4,3447.3,0.001]
[1762895767568,3.96175321,3447.4,3447.3,0.001]
[1762895767969,6.36248999,3447.4,3447.3,0.001]
[1762895768285,5.07604934,3447.4,3447.3,0.001]
[1762895768482,0.54157176,3447.4,3447.3,0.4611]
[1762895768863,0.54157176,3447.4,3447.3,0.9466]
[1762895769407,0.54157176,3447.4,3447.3,4.25292493]
[1762895769604,0.54157176,3447.4,3447.3,5.05657874]
[1762895770366,0.54157176,3447.4,3447.3,2.15575781]
[1762895770555,0.54157176,3447.4,3447.3,4.25292493]
[1762895771957,0.54157176,3447.4,3447.3,1.352104]
[1762895772590,0.54157176,3447.4,3447.3,4.25292493]
[1762895773096,0.54157176,3447.4,3447.3,1.352104]
[1762895773458,0.54157176,3447.4,3447.3,4.25292493]
[1762895773792,0.54157176,3447.4,3447.3,4.8798615]
[1762895774995,0.54157176,3447.4,3447.3,8.13452738]
[1762895776304,0.54157176,3447.4,3447.3,14.86051114]
[1762895776467,0.27078588,3447.4,3447.3,14.86051114]
[1762895776863,0.27078588,3447.4,3447.3,5.23370645]
[1762895777063,0.54225069,3447.4,3447.3,4.74820645]
[1762895777263,0.54225069,3447.4,3447.3,5.93070645]
[1762895777663,1.03425069,3447.4,3447.3,0.001]
[1762895778186,1.94685069,3447.4,3447.3,0.698]
[1762895778388,1.44685069,3447.4,3447.3,0.698]
[1762895779082,1.94685069,3447.4,3447.3,0.698]
[1762895779475,1.94685069,3447.4,3447.3,0.001]
[1762895779686,3.27547656,3447.4,3447.3,0.001]
[1762895779993,3.27547656,3447.4,3446.9,0.001]
[1762895779994,0.5,3447.3,3447.2,0.697]
[1762895780200,1.53655069,3447.3,3447.2,0.697]
[1762895780406,3.65737483,3447.3,3447.2,0.697]
[1762895780961,3.65737483,3447.3,3447.2,0.50813642]
[1762895781700,3.15790654,3447.3,3447.2,0.50813642]
[1762895781900,2.5811232,3447.3,3447.2,0.50813642]
[1762895782206,0.5,3447.0,3446.9,0.001]
[1762895782392,1.0427824,3447.0,3446.9,0.698]
[1762895782594,1.4465824,3447.0,3446.9,0.698]
[1762895782795,1.9465824,3447.0,3446.9,0.698]
[1762895783096,2.14124064,3447.0,3446.9,0.698]
[1762895783298,0.5427824,3447.0,3446.9,1.1581]
[1762895783499,0.5427824,3447.0,3446.9,4.95026156]
[1762895783811,0.2713912,3447.0,3446.9,4.95026156]
[1762895784277,0.54263955,3447.0,3446.9,1.352104]
[1762895784475,0.54263955,3447.0,3446.9,0.4611]
[1762895784796,0.54263955,3447.0,3446.9,0.698]
[1762895785905,0.54263955,3447.0,3446.9,1.1504]
[1762895786216,0.54263955,3447.0,3446.9,4.52965756]
[1762895786603,0.54263955,3447.0,3446.9,4.93516156]
[1762895786915,0.002,3447.6,3447.4,0.405504]
[1762895787078,0.002,3447.6,3447.5,1.3345]
[1762895787415,0.54458286,3447.6,3447.5,1.8058377]
[1762895787787,0.54458286,3447.6,3447.5,2.2839377]
[1762895788190,0.54458286,3447.6,3447.5,1.8126]
[1762895788509,0.54458286,3447.6,3447.5,0.696]
[1762895788709,0.54458286,3447.6,3447.2,0.1861]
[1762895788919,0.54258286,3447.5,3447.3,0.696]
[1762895789077,0.54258286,3447.4,3447.3,0.696]
[1762895789279,0.54258286,3447.4,3447.3,3.95066588]
[1762895789705,0.54258286,3447.4,3447.3,4.40306588]
[1762895790496,0.54258286,3447.4,3447.3,3.70706588]
[1762895790706,0.54258286,3447.4,3447.3,4.40306588]
[1762895790906,0.54258286,3447.4,3447.3,3.70706588]
[1762895791102,0.54258286,3447.4,3447.3,4.40306588]
[1762895791553,0.54258286,3447.4,3447.3,3.25466588]
[1762895791715,0.54258286,3447.4,3447.3,4.40306588]
[1762895792030,0.54258286,3447.4,3447.3,4.88116588]
[1762895792231,0.54258286,3447.4,3447.3,4.40306588]
[1762895792811,0.54458286,3447.4,3447.3,4.40306588]
[1762895795226,0.54458286,3447.4,3447.3,8.98430732]
[1762895799138,0.54458286,3447.4,3447.3,23.48430732]
[1762895799722,0.54458286,3447.4,3447.3,3.70706588]
[1762895799927,0.54458286,3447.4,3447.3,3.95066588]
[1762895801741,0.54458286,3447.4,3447.3,4.40306588]
[1762895801960,0.54458286,3447.4,3447.3,8.18749081]
[1762895802755,0.54458286,3447.4,3447.3,5.28666988]
[1762895802953,0.54458286,3447.4,3447.3,3.25466588]
[1762895803121,0.54458286,3447.4,3447.3,3.95066588]
[1762895803837,0.54458286,3447.4,3447.3,4.40306588]
[1762895804514,0.54458286,3447.4,3447.3,3.70706588]
[1762895804720,0.94958286,3447.4,3447.3,3.94966588]
[1762895805729,0.94985592,3447.4,3447.3,3.94966588]
[1762895806261,0.54485592,3447.4,3447.3,3.94966588]
[1762895807460,0.94985592,3447.4,3447.3,3.94966588]
[1762895807844,0.94985592,3447.4,3447.3,3.25466588]
[1762895808026,1.44545592,3447.4,3447.3,3.25466588]
[1762895808360,2.14020151,3447.4,3447.3,0.695]
[1762895808742,1.64020151,3447.4,3446.9,0.001]
[1762895809058,0.905,3447.0,3446.9,0.001]
[1762895809257,1.44785592,3447.0,3446.9,0.696]
[1762895809574,2.13789151,3447.0,3446.9,0.696]
[1762895812454,2.13790394,3447.0,3446.9,0.696]
[1762895813176,0.5,3446.7,3446.6,0.001]
[1762895813329,1.44666835,3446.7,3446.6,0.696]
[1762895813658,7.45456654,3446.7,3446.6,0.696]
[1762895813877,4.05324064,3446.7,3446.6,0.696]
[1762895814025,3.07600915,3446.7,3446.6,0.001]
[1762895814226,5.97733505,3446.7,3446.6,0.001]
[1762895814445,5.97733505,3446.7,3446.6,0.696]
[1762895814446,3.07600915,3446.7,3446.6,0.696]
[1762895815158,5.97733505,3446.7,3446.6,0.696]
[1762895817053,3.07600915,3446.7,3446.6,0.696]
[1762895817251,4.05315146,3446.7,3446.6,0.696]
[1762895817563,6.95447736,3446.7,3446.6,0.696]
[1762895817761,4.05315146,3446.7,3446.6,0.696]
[1762895817981,3.07600915,3446.7,3446.6,0.696]
[1762895818530,5.97733505,3446.7,3446.6,0.696]
[1762895819570,6.47733505,3446.7,3446.6,0.696]
[1762895819744,3.57600915,3446.7,3446.6,0.696]
[1762895819945,6.47733505,3446.7,3446.6,0.696]
[1762895820268,7.45449503,3446.7,3446.6,0.696]
[1762895820478,6.95449503,3446.7,3446.6,0.001]
[1762895820670,7.45449503,3446.7,3446.6,0.001]
[1762895822954,12.54419064,3446.7,3446.6,0.001]
[1762895823152,12.54419064,3446.7,3446.5,0.001]
[1762895823153,4.03515088,3446.6,3446.5,0.001]
[1762895823411,11.85812038,3446.6,3446.5,0.001]
[1762895824766,4.03531925,3446.4,3446.3,0.001]
[1762895824969,5.03557185,3446.1,3445.9,0.001]
[1762895825279,8.20271359,3446.1,3445.9,0.001]
[1762895825456,3.57446918,3446.1,3445.9,0.001]
[1762895825792,7.6769446,3446.1,3445.9,0.001]
[1762895825981,7.6478958,3446.1,3445.9,0.001]
[1762895829276,2.90191526,3446.0,3445.9,0.001]
[1762895829481,4.93444364,3446.0,3445.9,0.001]
[1762895829797,2.58396918,3446.0,3445.9,0.001]
[1762895830092,1.04122838,3446.0,3445.9,0.4813]
[1762895831485,1.45022838,3446.0,3445.9,0.001]
[1762895831711,2.22465921,3446.0,3445.9,0.001]
[1762895831904,1.45022838,3446.0,3445.9,0.001]
[1762895833083,1.04122838,3446.0,3445.9,0.4813]
[1762895833809,0.54122838,3446.0,3445.9,0.9498]
[1762895834279,0.002,3447.4,3445.9,6.4740196]
[1762895834480,0.5,3447.3,3447.1,0.4803]
[1762895834694,0.502,3447.2,3447.1,0.694]
[1762895834917,0.502,3447.2,3446.8,0.694]
[1762895834918,0.5,3447.0,3446.8,0.694]
[1762895835122,0.5,3446.7,3446.3,0.1842]
[1762895835362,0.5,3447.0,3446.4,1.1625]
[1762895835509,0.5,3447.0,3446.6,0.4803]
[1762895836107,1.1357408,3447.2,3446.6,0.4803]
[1762895836296,0.5,3447.0,3446.6,0.4803]
[1762895836617,0.502,3447.2,3447.1,0.6645]
[1762895836914,0.002,3447.2,3447.1,1.1743]
[1762895837615,0.002,3447.2,3447.1,1.6428]
[1762895838409,0.002,3447.2,3447.1,1.1743]
[1762895841240,0.5,3447.1,3446.5,0.4685]
[1762895841463,0.5,3447.1,3446.6,1.1625]
[1762895841651,0.5,3447.1,3447.0,0.4803]
[1762895843165,0.002,3447.2,3447.0,0.9488]
[1762895843467,0.002,3447.2,3447.1,7.32995511]
[1762895843673,0.002,3447.2,3447.1,7.79845511]
[1762895843861,0.002,3447.2,3447.1,9.54145706]
[1762895844265,0.002,3447.2,3447.1,9.94696106]
[1762895844431,0.002,3447.2,3447.1,6.69229518]
[1762895844632,0.002,3447.2,3447.1,9.94696106]
[1762895845275,0.002,3447.2,3447.1,25.58070186]
[1762895845574,0.002,3447.4,3447.3,2.90082093]
[1762895845724,0.002,3447.4,3447.3,16.21437712]
[1762895845930,0.002,3447.4,3447.3,16.68667712]
[1762895849205,0.002,3447.4,3447.3,31.18667712]
[1762895849588,0.002,3447.4,3447.3,21.55541816]
[1762895849808,0.002,3447.4,3447.3,22.65392216]
[1762895850282,0.002,3447.4,3447.3,25.55474309]
[1762895851656,0.002,3447.4,3447.3,22.65392216]
[1762895851807,0.002,3447.4,3447.3,24.86174309]
[1762895852003,0.002,3447.4,3447.3,25.55474309]
[1762895853438,0.002,3447.4,3447.3,22.65392216]
[1762895853745,0.002,3447.4,3447.3,25.55474309]
[1762895854853,0.002,3447.4,3447.3,22.65392216]
[1762895855008,0.002,3447.4,3447.3,25.55474309]
[1762895857440,0.002,3447.4,3447.3,22.65392216]
[1762895857755,0.002,3447.4,3447.3,25.55474309]
[1762895857964,0.002,3447.4,3447.3,22.65392216]
[1762895858381,0.4189,3447.4,3447.3,3.25466588]
[1762895858538,0.4189,3447.4,3447.3,3.94766588]
[1762895858539,0.68888409,3447.4,3447.3,3.94766588]
[1762895859249,0.95907927,3447.4,3447.3,3.94766588]
[1762895860081,0.54217949,3447.4,3447.3,3.94766588]
[1762895860762,0.54217949,3447.4,3447.3,4.41826588]
[1762895861138,0.54217949,3447.4,3447.3,3.94766588]
[1762895861648,0.95977949,3447.4,3446.5,0.4723]
[1762895861864,0.54017949,3447.3,3446.8,4.92960624]
[1762895862177,0.54017949,3447.2,3447.0,2.90103439]
[1762895862362,0.54017949,3447.1,3447.0,3.37333439]
[1762895862569,0.54017949,3447.1,3447.0,5.04768973]
[1762895862737,0.54017949,3447.1,3447.0,5.51828973]
[1762895862934,0.95707949,3447.1,3446.9,0.692]
[1762895863176,0.002,3447.4,3446.9,0.692]
[1762895863177,0.54064077,3447.0,3446.9,0.692]
[1762895863340,0.95754077,3447.0,3446.9,0.692]
[1762895863887,1.45174077,3447.0,3446.9,0.692]
[1762895864062,1.45174077,3447.0,3446.8,0.001]
[1762895864262,1.04054077,3446.9,3446.8,0.001]
[1762895864583,1.54054077,3446.9,3446.8,0.693]
[1762895867954,10.50504537,3446.9,3446.8,0.693]
[1762895868355,10.50504537,3446.9,3446.8,0.001]
[1762895868587,5.57543913,3446.9,3446.8,0.001]
[1762895868756,0.54064077,3446.9,3446.8,0.4716]
[1762895869093,0.54064077,3446.9,3446.8,0.9439]
[1762895870353,0.54064077,3446.9,3446.8,3.37284173]
[1762895870572,0.54064077,3446.9,3446.8,0.9439]
[1762895870913,0.54064077,3446.9,3446.8,1.70852707]
[1762895871202,0.54064077,3446.9,3446.8,0.001]
[1762895871203,0.95754077,3446.9,3446.8,0.001]
[1762895871505,1.95174077,3446.9,3446.8,0.693]
[1762895871897,4.85289833,3446.9,3446.8,0.693]
[1762895872221,6.01568793,3446.9,3446.8,0.001]
[1762895872370,2.90140226,3446.7,3446.5,0.693]
[1762895872565,2.67928157,3446.6,3446.5,0.693]
[1762895872875,6.07569165,3446.6,3446.5,0.693]
[1762895873074,2.67428157,3446.6,3446.5,0.693]
[1762895873605,5.57569165,3446.6,3446.5,0.693]
[1762895873781,6.42339264,3446.6,3446.5,0.693]
[1762895874178,3.52198256,3446.6,3446.5,0.693]
[1762895874393,6.42339264,3446.6,3446.5,0.693]
[1762895874796,3.52198256,3446.6,3446.5,0.693]
[1762895874994,6.42339264,3446.6,3446.5,0.693]
[1762895875595,3.52198256,3446.6,3446.5,0.693]
[1762895875799,2.67428157,3446.6,3446.5,0.693]
[1762895875995,5.57569165,3446.6,3446.5,0.693]
[1762895876376,2.67428157,3446.6,3446.5,0.693]
[1762895876731,5.57569165,3446.6,3446.5,0.693]
[1762895876931,2.67428157,3446.6,3446.5,0.693]
[1762895877136,2.94170973,3446.6,3446.5,0.693]
[1762895877338,5.84311981,3446.6,3446.5,0.693]
[1762895877531,6.34311981,3446.6,3446.5,0.001]
[1762895879503,6.34311981,3446.6,3446.0,0.001]
[1762895879504,3.90183105,3446.1,3446.0,0.001]
[1762895879827,5.56387784,3446.1,3446.0,0.001]
[1762895880030,6.01547784,3446.1,3446.0,0.001]
[1762895880231,5.98642904,3446.1,3446.0,0.001]
[1762895880551,3.08459799,3446.1,3446.0,0.001]
[1762895880956,5.30607182,3446.1,3446.0,0.001]
[1762895881419,5.33512062,3446.1,3446.0,0.001]
[1762895881621,6.43981262,3446.1,3446.0,0.001]
[1762895881826,6.43981262,3446.1,3445.6,0.001]
[1762895881827,3.71598,3445.9,3445.6,0.001]
[1762895882058,12.24148961,3445.7,3445.6,0.001]
[1762895882260,12.24148961,3445.7,3445.1,0.001]
[1762895882261,3.90242061,3445.4,3445.1,0.001]
[1762895882560,6.01085098,3445.4,3445.1,0.001]
[1762895882759,6.83890618,3445.4,3445.1,0.001]
[1762895882965,12.1714108,3445.2,3445.1,0.001]
[1762895883166,11.76624384,3444.8,3443.9,0.636]
[1762895883340,12.70858461,3444.8,3443.9,0.636]
[1762895883542,3.02768157,3444.8,3443.9,0.636]
[1762895883769,3.52768157,3444.8,3443.9,0.636]
[1762895884291,3.02768157,3444.8,3444.1,0.098]
[1762895884469,6.25196587,3444.8,3444.1,0.098]
[1762895884669,3.34903973,3444.8,3444.1,0.098]
[1762895884975,3.34903973,3444.8,3444.1,0.5514]
[1762895884976,2.57608157,3444.8,3444.1,0.5514]
[1762895885172,0.54064077,3444.8,3444.7,0.9148]
[1762895885535,0.54064077,3444.8,3444.7,0.001]
[1762895885731,1.02244077,3444.8,3444.7,0.001]
[1762895886039,1.52244077,3444.8,3444.7,0.001]
[1762895886249,1.97404077,3444.8,3444.7,0.001]
[1762895886441,3.59892381,3444.8,3444.7,0.001]
[1762895886766,2.65618157,3444.8,3444.7,0.001]
[1762895887071,2.17438157,3444.8,3444.7,0.001]
[1762895887735,0.54064077,3444.8,3444.7,0.4614]
[1762895888560,0.54064077,3444.8,3444.7,0.001]
[1762895888774,1.97404077,3444.8,3444.7,0.693]
[1762895889071,2.67144485,3444.8,3444.7,0.693]
[1762895889372,3.80518565,3444.8,3444.7,0.693]
[1762895889670,6.70811179,3444.8,3444.7,0.693]
[1762895889976,3.8043633,3444.8,3444.7,0.693]
[1762895891377,6.70728944,3444.8,3444.7,0.693]
[1762895891970,3.8043633,3444.8,3444.7,0.693]
[1762895892277,6.70728944,3444.8,3444.7,0.001]
[1762895894571,6.25568944,3444.8,3444.7,0.001]
[1762895894775,6.70728944,3444.8,3444.7,0.001]
[1762895895141,3.8043633,3444.8,3444.7,0.001]
[1762895895344,2.8527633,3444.8,3444.7,0.001]
[1762895895566,0.53981842,3444.8,3444.7,0.9148]
[1762895895902,1.03981842,3444.8,3444.7,0.4614]
[1762895897473,1.52161842,3444.8,3444.7,0.001]
[1762895899066,3.78578298,3444.5,3444.3,0.001]
[1762895899332,2.90436111,3443.1,3442.7,0.094]
[1762895899606,3.40461252,3442.8,3442.7,0.094]
[1762895899804,0.53981842,3442.8,3442.5,0.691]
[1762895900099,3.40478126,3442.6,3442.5,0.691]
[1762895900274,3.94459968,3442.6,3442.5,0.691]
[1762895900607,0.53981842,3442.6,3442.5,0.691]
[1762895900806,1.03981842,3442.6,3442.5,0.691]
[1762895901207,0.53981842,3442.6,3442.5,0.691]
[1762895901508,2.90491838,3442.5,3442.2,0.691]
[1762895901819,0.5,3442.3,3442.2,0.691]
[1762895901975,1.03981842,3442.3,3442.2,0.691]